Cogmind - Beta 12 @@@ ROGUE MODE // 2023.12.20 @ 08:15:00 Player: neongurkan Result: Destroyed by L-31 Rogue with Katana Performance ------------- Evolutions (2) 1000 Regions Visited (4) 800 Robots Destroyed (30) 150 Value Destroyed (980) 980 Prototype IDs (1) 20 Alien Tech Used (0) 0 Bonus (72) 72 TOTAL SCORE: 3022 Bonus ------- Follower Combat Kills 72 Cogmind --------- Core Integrity 0/550 Matter 300/300 Energy 125/125 System Corruption 0% Temperature Cool (0) Movement Core (800) Ox15 Location -8/Materials Parts ------- > --- POWER (1) -------- Light Ion Engine > --- PROPULSION (2) --- (None) > --- UTILITY (5) ------ High-capacity Storage Unit Targeting Computer > --- WEAPON (3) ------- Pulse Rifle > --- INVENTORY (20) --- Ion Engine Ion Engine Light Nuclear Core Aluminum Leg Aluminum Leg Improved Carbon-fiber Leg Cooled VTOL Module Faulty Cooled VTOL Module Heat Sink Improved Cooling System Small Storage Unit Medium Storage Unit High-capacity Storage Unit High-capacity Storage Unit Peak State ------------ > --- POWER ------------ Light Ion Engine > --- PROPULSION ------- Carbon-fiber Leg Carbon-fiber Leg > --- UTILITY ---------- Improved Heat Sink Improved Heat Sink High-capacity Storage Unit Targeting Computer Core Shielding > --- WEAPON ----------- EM Shotgun Small Laser Light Assault Rifle > --- INVENTORY -------- Ion Engine Ion Engine Light Nuclear Core Aluminum Leg Aluminum Leg Improved Carbon-fiber Leg Cooled VTOL Module Cooled VTOL Module Heat Sink Improved Cooling System Small Storage Unit Medium Storage Unit High-capacity Storage Unit High-capacity Storage Unit Pulse Rifle [Rating: 23] Favorites ----------- Power Light Ion Engine Engine Light Ion Engine Power Core Light Nuclear Core Propulsion Aluminum Leg Leg Aluminum Leg Utility High-capacity Storage Unit Device Heat Sink Storage High-capacity Storage Unit Processor Targeting Computer Protection Core Shielding Weapon Assault Rifle Energy Gun Particle Gun Ballistic Gun Assault Rifle Launcher Grenade Launcher Build | -11 -10 -10 -9 -8 ------- Run | Jun Mat Min Mat Mat Slots Evolved 4 | . . . 2 2 Power . | . . . . . Propulsion . | . . . . . Utility 3 | . . . 1 2 Weapon 1 | . . . 1 . Parts Attached 53 | 6 6 5 9 27 Power 8 | 1 1 1 1 4 Engine 7 | 1 1 1 1 3 Core 1 | . . . . 1 Reactor . | . . . . . Propulsion 10 | 2 . 2 . 6 Treads . | . . . . . Leg 10 | 2 . 2 . 6 Wheel . | . . . . . Hover . | . . . . . Flight . | . . . . . Utility 17 | 1 3 1 5 7 Device 4 | . . . 1 3 Storage 9 | 1 3 1 4 . Processor 1 | . . . . 1 Hackware . | . . . . . Protection 3 | . . . . 3 Artifact . | . . . . . Weapon 18 | 2 2 1 3 10 Energy Gun 6 | . . 1 . 5 Energy Cannon . | . . . . . Ballistic Gun 10 | 2 2 . 1 5 Ballistic Cannon . | . . . . . Launcher 2 | . . . 2 . Special Weapon . | . . . . . Impact Weapon . | . . . . . Slashing Weapon . | . . . . . Piercing Weapon . | . . . . . Special Melee Weapon . | . . . . . Unidentified Prototypes 1 | . . . . 1 Parts Lost 28 | . . 1 . 27 Power 2 | . . . . 2 Propulsion 6 | . . . . 6 Utility 7 | . . . . 7 Weapon 13 | . . 1 . 12 Highest Loss Streak 9 | . . 1 . 9 To Critical Strikes . | . . . . . Average Slot Usage (%) 86 | . 93 97 92 76 Engine 10 | . 14 14 10 7 Leg 20 | . 28 28 22 15 Device 7 | . . . 7 12 Storage 16 | . 21 28 20 9 Processor 1 | . . . . 2 Protection 2 | . . . . 6 Energy Gun 9 | . . 3 11 12 Ballistic Gun 13 | . 28 21 11 8 Launcher 3 | . . . 9 1 Naked Turns . | . . . . . Heaviest Build 95 | 12 17 25 95 54 Greatest Support 30 | 20 20 20 20 30 Greatest Overweight (x) 15 | . . 1 4 15 Average Overweight (x) 1 | . . . 2 1 Largest Inventory Capacity 20 | 8 8 10 20 20 Average Capacity 16 | 7 8 8 19 20 Most Carried 16 | 2 8 8 15 16 Average Carried 10 | 1 6 8 10 12 Final Capacity 20 | 8 8 10 20 20 Final Carried 15 | 2 8 8 15 14 Class Distribution -------------------- 39% | Scavenger-Gunner 26% | Mutant 20% | Scavenger-Mutant 9% | Scavenger-Tank 5% | Tank Dominant Class ---------------- Mutant | -10/Materials Mutant | -10/Mines Scavenger-Gunner | -9/Materials Scavenger-Mutant | -8/Materials Resources | -11 -10 -10 -9 -8 ----------- Run | Jun Mat Min Mat Mat Matter Collected 967 | 214 140 112 78 423 Remotely . | . . . . . Salvage Created 1102 | . 140 71 50 841 Parts 68 | . 8 4 4 52 Haulers Intercepted . | . . . . . Recyclers Shooed . | . . . . . Parts Field Recycled . | . . . . . Retrieved Matter . | . . . . . Parts Self-Destructed . | . . . . . Prevented . | . . . . . Kills | -11 -10 -10 -9 -8 ------- Run | Jun Mat Min Mat Mat Combat Hostiles Destroyed 28 | . 7 2 2 17 Guns 23 | . 7 2 . 14 AOE 5 | . . . 2 3 Classes Destroyed 8 | . 2 . . 6 Builder 1 | . . . . 1 Recycler 1 | . . . . 1 Swarmer 9 | . 6 1 . 2 Grunt 10 | . 1 1 2 6 Brawler 1 | . . . . 1 Duelist 1 | . . . . 1 Sentry 5 | . . . . 5 Specialist 2 | . . . . 2 Best Kill Streak 7 | . 7 1 2 4 Combat Bots Only 7 | . 7 1 2 4 Max Kills in Single Turn 2 | . 1 1 1 2 Gunslinging . | . . . . . Exploded 2 | . . . 1 2 Melee . | . . . . . Uniques/NPCs Destroyed . | . . . . . Combat | -11 -10 -10 -9 -8 -------- Run | Jun Mat Min Mat Mat Damage Taken 2963 | . 370 73 45 2475 Core 659 | . 86 8 12 553 Absorbed by Shields . | . . . . . Redirected to Shielding 39 | . . . . 39 Core Remaining (%) 86 | 100 . 62 97 . Volleys Fired 86 | . 13 8 4 61 Largest 3 | . 2 2 3 3 Hottest 125 | . 40 40 118 125 Shots Fired 172 | . 26 11 11 124 Gun 164 | . 26 11 8 119 Cannon . | . . . . . Launcher 8 | . . . 3 5 Special . | . . . . . Kinetic 98 | . 26 11 4 57 Thermal 48 | . . . 4 44 Explosive 8 | . . . 3 5 Electromagnetic 18 | . . . . 18 Robot Hit Streak 12 | . 5 4 3 12 Robot Miss Streak 4 | . 2 3 3 4 Penetration Max . | . . . . . Secondary Targets 5 | . 3 1 . 1 Max Gunslinging Chain 1 | . 1 1 . 1 Shots Hit Robots 117 | . 18 6 6 87 Core Hits 63 | . 8 4 4 47 Critical Kills . | . . . . . Critical Parts Destroyed . | . . . . . Critical Strikes 1 | . . . . 1 Corrupt 1 | . . . . 1 Melee Attacks . | . . . . . Impact . | . . . . . Slashing . | . . . . . Piercing . | . . . . . Sneak Attacks . | . . . . . Combat Hostiles . | . . . . . Follow-up Attacks . | . . . . . Damage Inflicted 2016 | . 253 67 244 1452 Guns 1410 | . 253 67 51 1039 Cannons . | . . . . . Explosions 598 | . . . 193 405 Melee . | . . . . . Ramming 8 | . . . . 8 Kinetic 829 | . 253 67 37 472 Thermal 594 | . . . 14 580 Explosive 416 | . . . 193 223 Electromagnetic 169 | . . . . 169 Impact . | . . . . . Slashing . | . . . . . Piercing . | . . . . . Highest Corruption . | . . . . . Average Corruption . | . . . . . Corruption Purged . | . . . . . Corruption Blocked . | . . . . . Overload Shots . | . . . . . Overflow Damage 13 | . . . . 13 Projectiles . | . . . . . Explosions 13 | . . . . 13 Melee . | . . . . . Knockbacks . | . . . . . Impact . | . . . . . Kinetic . | . . . . . Secondary . | . . . . . Self-Inflicted Damage 78 | . . . . 78 Shots 2 | . . . . 2 Rammed 1 | . . . . 1 Targets Rammed 2 | . . . . 2 Kicked 1 | . . . . 1 Crushed . | . . . . . Highest Temperature 114 | . . . 45 114 Average Temperature 43 | . . . 20 52 Received Heat Transfer 804 | . 24 . 24 756 Siege Activations . | . . . . . Robots Corrupted . | . . . . . Combat Hostiles . | . . . . . Parts Fried . | . . . . . Impact Corruptions . | . . . . . Robots Melted . | . . . . . Combat Hostiles . | . . . . . Parts Melted . | . . . . . Heat Transferred 1140 | . . . 37 1103 Parts Sabotaged . | . . . . . Parts Stolen . | . . . . . Parts Stripped . | . . . . . Power Chain Reactions 2 | . . . . 2 Missiles Intercepted . | . . . . . Alert | -11 -10 -10 -9 -8 ------- Run | Jun Mat Min Mat Mat Peak Influence 210 | . 200 179 143 210 Initial 78 | . . 78 69 22 Average 78 | . 78 122 64 87 Maximum Alert Level 1 | . 1 . . 1 Low Security (%) 95 | 100 68 100 100 99 Level 1 4 | . 31 . . . Level 2 . | . . . . . Level 3 . | . . . . . Level 4 . | . . . . . Level 5 . | . . . . . High Security . | . . . . . Max Security . | . . . . . Squads Dispatched 10 | . 1 . 2 7 Investigation . | . . . . . Extermination . | . . . . . Reinforcement 4 | . 1 . 2 1 Assault . | . . . . . Garrison 6 | . . . . 6 Intercept . | . . . . . Searches Triggered . | . . . . . Construction Impeded . | . . . . . Haulers Reinforced . | . . . . . Active Scanning Responses . | . . . . . Cargo Convoy Interrupts . | . . . . . Stealth | -11 -10 -10 -9 -8 --------- Run | Jun Mat Min Mat Mat Distress Signals 5 | . 4 . . 1 Communications Jammed . | . . . . . Distress Signals . | . . . . . Times Spotted 49 | . 9 4 7 29 Peak Tracking Total 6 | . 6 3 3 6 Tactical Retreats 5 | . 2 . . 3 Traps | -11 -10 -10 -9 -8 ------- Run | Jun Mat Min Mat Mat Traps Triggered . | . . . . . Indirectly . | . . . . . Trap Hack Attempts . | . . . . . Triggered . | . . . . . Disarmed . | . . . . . Reprogrammed . | . . . . . Reused . | . . . . . Traps Extracted . | . . . . . Installed . | . . . . . Triggered . | . . . . . Machines | -11 -10 -10 -9 -8 ---------- Run | Jun Mat Min Mat Mat Machines Disabled 1 | . . . . 1 Max in Single Turn 1 | . . . . 1 Machines Repaired . | . . . . . Machines Sabotaged . | . . . . . Overloaded Fab Kills . | . . . . . Hacking | -11 -10 -10 -9 -8 --------- Run | Jun Mat Min Mat Mat Machines Accessed 2 | . . . 1 1 Terminals 1 | . . . . 1 Fabricators . | . . . . . Repair Stations . | . . . . . Recycling Units 1 | . . . 1 . Scanalyzers . | . . . . . Garrison Access . | . . . . . Total Hacks 2 | . . . 1 1 Successful 2 | . . . 1 1 Failed . | . . . . . Catastrophic . | . . . . . Database Lockouts . | . . . . . Manual . | . . . . . Terminals 1 | . . . . 1 Fabricators . | . . . . . Repair Stations . | . . . . . Recycling Units 1 | . . . 1 . Scanalyzers . | . . . . . Garrison Access . | . . . . . Terminal Hacks 1 | . . . . 1 Robot Analysis 1 | . . . . 1 Fabricator Hacks . | . . . . . Repair Station Hacks . | . . . . . Recycling Unit Hacks 1 | . . . 1 . Recycle Component 1 | . . . 1 . Scanalyzer . | . . . . . Garrison Access Hacks . | . . . . . Unauthorized Hacks . | . . . . . Terminals . | . . . . . Fabricators . | . . . . . Repair Stations . | . . . . . Recycling Units . | . . . . . Scanalyzers . | . . . . . Garrison Access . | . . . . . Data Cores Recovered . | . . . . . Used . | . . . . . Hacking Detections . | . . . . . Full Trace Events . | . . . . . Feedback Events . | . . . . . Feedback Blocked . | . . . . . Robot Schematics Acquired . | . . . . . Robots Built . | . . . . . Authchips . | . . . . . Time . | . . . . . Total Robot Build Rating . | . . . . . Part Schematics Acquired . | . . . . . Parts Built . | . . . . . Authchips . | . . . . . Time . | . . . . . Total Part Build Rating . | . . . . . Parts Repaired . | . . . . . Time . | . . . . . Parts Recycled 1 | . . . 1 . Recycled Matter . | . . . . . Retrieved Matter . | . . . . . Retrieved Components . | . . . . . Parts Scanalyzed . | . . . . . Part Schematics Acquired . | . . . . . Parts Damaged . | . . . . . Bothacking | -11 -10 -10 -9 -8 ------------ Run | Jun Mat Min Mat Mat Used RIF Installer . | . . . . . Robots Hacked . | . . . . . Non-combat . | . . . . . Combat . | . . . . . Robot Hacks Applied . | . . . . . Relay Couplers Released . | . . . . . Fabnet Peak Effective % . | . . . . . Robots Rewired . | . . . . . Allies Hacked . | . . . . . Hacks Repelled . | . . . . . Allies | -11 -10 -10 -9 -8 -------- Run | Jun Mat Min Mat Mat Total Allies 2 | . . 2 . . Largest Group 2 | . . 2 1 1 Highest-Rated Group 45 | . . 45 31 31 Highest-Rated Ally 31 | . . 31 31 31 Total Orders . | . . . . . Ally Attacks 18 | . . 10 7 1 Total Damage 255 | . . 128 105 22 Kills 5 | . . 3 2 . Allies Corrupted . | . . . . . Allies Melted . | . . . . . Intel | -11 -10 -10 -9 -8 ------- Run | Jun Mat Min Mat Mat Robot Analysis Total 1 | . . . . 1 Derelict Logs Recovered . | . . . . . Drone Launches . | . . . . . Drone Recoveries . | . . . . . Exploration | -11 -10 -10 -9 -8 ------------- Run | Jun Mat Min Mat Mat Turns Passed 2139 | 55 320 183 762 819 Spaces Moved 880 | 41 204 125 250 260 Core 13 | 7 . . . 6 Treads . | . . . . . Legs 867 | 34 204 125 250 254 Wheels . | . . . . . Hover . | . . . . . Flight . | . . . . . Fastest Speed 50 | 50 120 120 190 190 Average Speed 201 | 108 120 126 291 231 Slowest Speed 800 | 120 120 190 400 800 Overloaded Moves . | . . . . . Propulsion Burnouts . | . . . . . Robots Hopped . | . . . . . Cave-ins Triggered . | . . . . . Exploration Rate (%) 21 | 4 32 27 19 23 Regions Visited 4 Branch Regions 1 Pre-discovered Areas . | . . . . . Known Exits Taken . | . . . . . Unknown Exits Taken 4 | 1 1 1 1 . Scrap Searched 1 | . . 1 . . Spaces Dug . | . . . . . Terrain Destroyed 48 | . . . 15 33 Melee . | . . . . . Projectile . | . . . . . AOE 48 | . . . 15 33 Terrain Rammed . | . . . . . Walls Destroyed . | . . . . . Machines Disabled . | . . . . . Actions | -11 -10 -10 -9 -8 --------- Run | Jun Mat Min Mat Mat Total 1084 | 49 253 141 278 363 Wait 19 | . 19 . . . Move 876 | 40 203 124 249 260 Hop . | . . . . . Pick Up 30 | 3 7 . 8 12 Fast Attach 21 | 5 1 1 3 11 Attach 20 | 1 1 . 4 14 Detach 4 | . . . 4 . Swap 13 | . 4 4 2 3 Drop 13 | . 5 4 4 . Fire 86 | . 13 8 4 61 Melee . | . . . . . Ram 1 | . . . . 1 Kick 1 | . . . . 1 Crush . | . . . . . Escape Stasis . | . . . . . Rewire . | . . . . . Trap . | . . . . . Miscellaneous . | . . . . . Route ------- -11/Junkyard -10/Materials -10/Mines -9/Materials -8/Materials History --------- Turn | Location | Event 20 | -11/Junkyard | Discovered new exit (range 14) 56 | -11/Junkyard | Entered Materials 296 | -10/Materials | Destroyed 7 combat bots 304 | -10/Materials | Build established: Mutant 312 | -10/Materials | Discovered new exit (range 10) 376 | -10/Materials | Entered Mines 442 | -10/Mines | Discovered new exit (range 13) 559 | -10/Mines | Entered Materials 559 | -9/Materials | Accompanied by 1 ally 559 | -9/Materials | Evolved 2 slots: Utility x1, Weapon x1 564 | -9/Materials | Led the pair of lost Derelicts to an unsafe place 975 | -9/Materials | Build established: Scavenger-Gunner 1287 | -9/Materials | Discovered new exit (range 12) 1321 | -9/Materials | Entered another Materials area 1321 | -8/Materials | Accompanied by 1 ally 1321 | -8/Materials | Evolved 2 slots: Utility x2 1473 | -8/Materials | Garrison activated, responded to threat 1523 | -8/Materials | Lost 8 parts (1p2n1u4w) 1634 | -8/Materials | Core integrity fell below 50% 1713 | -8/Materials | Lost 9 parts (1p2n2u4w) 1868 | -8/Materials | Core integrity fell below 20% 2073 | -8/Materials | Lost 4 parts (1u3w) 2140 | -8/Materials | Destroyed by L-31 Rogue with Katana Last Messages --------------- Sml. Laser destroyed. Y-45 Defender destroyed. Acquired 1 matter. Acquired Beam Rifle. K-01 Serf collects debris. Lgt. Assault Rifle destroyed. K-01 Serf destroyed. Critical hit (Burn: +37). Y-45 Defender destroyed. Acquired 6 matter. Acquired Lgt. Armor Plating. Carbon-fiber Leg destroyed. Critical hit (Burn: +37). G-47 Trooper destroyed. Acquired 15 matter. Imp. Heat Sink destroyed. Lgt. Armor Plating destroyed. Beam Rifle destroyed. Carbon-fiber Leg destroyed. Core Shielding destroyed. Map ----- +----------------------------------------------------+ | ???????????????????###############???????????? | | ???????????????????# #?#######???? | | ???????????????????# ##### #?# #???? | | ???????????????????# #???# ### #???? | | ???????????????????######+###### T #???? | | ????????????????????# ## ### ##### | | ????????????????????# ## #?# [ / | | ????????????????????# ## #####+####### | | ????????????????????# =## ## ###?? | | ????????????????????# ## ## * # #?? | | ????????????????????# ## + =# #?? | | ????????????????????# ##### # #?? | | ????????????????????# #???# ###?? | | ????????????????????###########???# ##### | | ?????????????????????????????????####+##### | | ?????????????????????????????????#! = *!# [" | | ?????????????????????????????????# =%**=[#=*% | | ?????????????????????????????????# !!=!%#!!" | | ???????????#######???????????????# |%!*+% | | ???????????# ?????????###########+### % | | ???????????# ########## #?# ##+# | | ???????????# ### | | ???????????+ ] %! | | ????????????? """ *%g ### % = | | ???????????? """ l #### %! #?# * ##+# | | ???????????? = """ @ #??###+###?### ### | | ????????????# !!!#????#=[ #???# #?# | | ????????????# !!!#????# #???# #?# " | | ????????????# """ !!!#????# #???# #?# " | | ????????????+ """ #????# ! #???# #?#### | | ????????????# """ #????# #???# #????? | | ?????????????? #????# #???# #????? | | ?????????????? #????# #???? ?????? | | ??????????????###+####+###????#####???? ?????? | | ??????????????????????????????????????? ?????? | | ???????????????????????????????????????#?????? | | ?????????????????????????????????????????????? | | ?????????????????????????????????????????????? | | ?????????????????????????????????????????????? | | ?????????????????????????????????????????????? | | ?????????????????????????????????????????????? | | ?????????????????????????????????????????????? | | ?????????????????????????????????????????????? | | ?????????????????????????????????????????????? | | ?????????????????????????????????????????????? | | ?????????????????????????????????????????????? | | ?????????????????????????????????????????????? | | ?????????????????????????????????????????????? | | ?????????????????????????????????????????????? | | ?????????????????????????????????????????????? | +----------------------------------------------------+ Best States ------------- Heat Dissipation 59 Energy Generation 10 Energy Capacity 250 Matter Stores 300 Matter Capacity 450 Sight Range 16 Terrain Scan Density 10 Armor Coverage 150 Core Shielding 20 Evasion (%) 55 Targeting Accuracy 5 Item Schematics ----------------- None Robot Schematics ------------------ None Fabricated ------------ Nothing Alien Tech Used ----------------- None Achievements -------------- None Challenges ------------ None Game ------ Seed SwarmSpectralDesublimator Manual? 0 Play Time 00:21:04 Cumulative 5.4 hours Start 2023.12.20 @ 07:54:19 End 2023.12.20 @ 08:15:00 Sessions 1 Manual Loads 0 Difficulty Rogue Special Mode None Game No. 14 Rogue 14 Adventurer 0 Explorer 0 Win Type - Total 0 Types 0/0/0/0/0/0/0/0/0 Lore% 8 Gallery% 11 Achievement% 10 Wizard Run 0 Options --------- ASCII 0 Keyboard 0 Movement Mouse Keybinds 0 Fullscreen 1 Font 18/Smallcaps Map View 70x54 Tactical HUD 0 Map Filters NONE Filters NONE Steam 1 RUN: dfc1f13c-c82a-4aed-91c2-aaead0cd2fdf